Cogmind - Beta 9.5 @@@ ROGUE MODE // 2020.04.06 @ 15:50:41 Player: Barleymor Result: Destroyed by Y-45 Defender with Beam Rifle Performance ------------- Evolutions (1) 500 Regions Visited (2) 400 Robots Destroyed (30) 150 Value Destroyed (858) 858 Prototype IDs (0) 0 Alien Tech Used (0) 0 Bonus (75) 75 TOTAL SCORE: 1983 Bonus ------- High Alert Combat Kills 75 Cogmind --------- Core Integrity 0/400 Matter 27/300 Energy 235/250 System Corruption 0% Temperature Cool (9) Movement Core (250) Ox4 Location -9/Materials Parts ------- > --- POWER (1) -------- Ion Engine > --- PROPULSION (3) --- (None) > --- UTILITY (3) ------ Disposable Heat Sink Medium Storage Unit > --- WEAPON (2) ------- (None) > --- INVENTORY (8) ---- Datajack Datajack Datajack Peak State ------------ > --- POWER ------------ Ion Engine > --- PROPULSION ------- Aluminum Leg Aluminum Leg Aluminum Leg > --- UTILITY ---------- Disposable Heat Sink Small Storage Unit Medium Armor Plating > --- WEAPON ----------- Spread Laser Rocket Launcher > --- INVENTORY -------- Ion Engine Medium Armor Plating Particle Gun Spread Laser Heavy Assault Rifle Rocket Launcher [Rating: 14] Favorites ----------- Power Ion Engine Engine Ion Engine Propulsion Aluminum Leg Leg Aluminum Leg Utility Disposable Heat Sink Device Disposable Heat Sink Storage Small Storage Unit Protection Medium Armor Plating Weapon Rocket Launcher Energy Gun Spread Laser Ballistic Gun Heavy Assault Rifle Launcher Rocket Launcher Special Melee Weapon Datajack Build | -11 -10 -9 ------- Run | Scr Mat Mat Slots Evolved 2 | . . 2 Power . | . . . Propulsion 1 | . . 1 Utility 1 | . . 1 Weapon . | . . . Parts Attached 22 | 6 3 13 Power 2 | 1 . 1 Engine 2 | 1 . 1 Core . | . . . Reactor . | . . . Propulsion 3 | 2 . 1 Treads . | . . . Leg 3 | 2 . 1 Wheel . | . . . Hover . | . . . Flight . | . . . Utility 5 | 1 1 3 Device 1 | . 1 . Storage 2 | 1 . 1 Processor . | . . . Hackware . | . . . Protection 2 | . . 2 Artifact . | . . . Weapon 12 | 2 2 8 Energy Gun 4 | 2 1 1 Energy Cannon . | . . . Ballistic Gun 2 | . . 2 Ballistic Cannon . | . . . Launcher 3 | . 1 2 Special Weapon . | . . . Impact Weapon . | . . . Slashing Weapon . | . . . Piercing Weapon . | . . . Special Melee Weapon 3 | . . 3 Unidentified Prototypes . | . . . Parts Lost 11 | . . 11 Power 1 | . . 1 Propulsion 3 | . . 3 Utility 2 | . . 2 Weapon 5 | . . 5 Highest Loss Streak 11 | . . 11 Average Slot Usage (%) 93 | . 95 91 Engine 12 | . 14 10 Leg 28 | . 28 29 Device 10 | . 9 11 Storage 12 | . 14 11 Protection 4 | . . 9 Energy Gun 9 | . 17 2 Ballistic Gun 2 | . . 4 Launcher 10 | . 10 9 Special Melee Weapon 1 | . . 2 Naked Turns . | . . . Heaviest Build 28 | 13 17 28 Greatest Support 30 | 20 20 30 Greatest Overweight (x) 7 | 2 . 7 Average Overweight (x) . | . . . Largest Inventory Capacity 8 | 6 6 8 Average Capacity 6 | 5 6 7 Most Carried 8 | 4 5 8 Average Carried 5 | 2 3 7 Final Capacity 8 | 6 6 8 Final Carried 5 | 2 5 3 Class Distribution -------------------- 100% | Mutant Dominant Class ---------------- Mutant | -10/Materials Mutant | -9/Materials Resources | -11 -10 -9 ----------- Run | Scr Mat Mat Matter Collected 582 | 239 117 226 Remotely . | . . . Salvage Created 611 | . 121 490 Parts 55 | . 12 43 Haulers Intercepted 1 | . . 1 Recyclers Shooed . | . . . Parts Field Recycled . | . . . Retrieved Matter . | . . . Parts Self-Destructed . | . . . Prevented . | . . . Kills | -11 -10 -9 ------- Run | Scr Mat Mat Combat Hostiles Destroyed 22 | . 4 18 Guns 3 | . . 3 AOE 19 | . 4 15 Classes Destroyed 10 | . 2 8 Worker 1 | . . 1 Builder 1 | . . 1 Hauler 1 | . . 1 Recycler 1 | . . 1 Operator 1 | . . 1 Watcher 3 | . 1 2 Swarmer 6 | . . 6 Grunt 10 | . 4 6 Duelist 2 | . . 2 Sentry 4 | . . 4 Best Kill Streak 8 | . 3 8 Combat Bots Only 6 | . 2 6 Max Kills in Single Turn 3 | . 2 3 Gunslinging . | . . . Exploded 2 | . 2 2 Melee . | . . . Uniques/NPCs Destroyed . | . . . Combat | -11 -10 -9 -------- Run | Scr Mat Mat Damage Taken 1431 | . 27 1404 Core 405 | . . 405 Absorbed by Shields . | . . . Core Remaining (%) 100 | 100 100 . Volleys Fired 57 | . 6 51 Largest 1 | . 1 1 Hottest 65 | . 33 65 Shots Fired 57 | . 6 51 Gun 13 | . . 13 Cannon . | . . . Launcher 44 | . 6 38 Special . | . . . Kinetic 3 | . . 3 Thermal 10 | . . 10 Explosive 44 | . 6 38 Electromagnetic . | . . . Robot Hit Streak 11 | . 5 11 Robot Miss Streak 6 | . . 6 Penetration Max . | . . . Secondary Targets . | . . . Shots Hit Robots 42 | . 5 37 Core Hits 56 | . 7 49 Critical Hits . | . . . Critical Kills . | . . . Critical Parts Destroyed . | . . . Melee Attacks 9 | . . 9 Impact . | . . . Slashing . | . . . Piercing . | . . . Sneak Attacks 5 | . . 5 Combat Hostiles . | . . . Follow-up Attacks . | . . . Damage Inflicted 2193 | . 255 1938 Guns 134 | . . 134 Cannons . | . . . Explosions 2057 | . 255 1802 Melee . | . . . Ramming 2 | . . 2 Kinetic 16 | . . 16 Thermal 118 | . . 118 Explosive 2057 | . 255 1802 Electromagnetic . | . . . Impact . | . . . Slashing . | . . . Piercing . | . . . Highest Corruption . | . . . Average Corruption . | . . . Corruption Purged . | . . . Overload Shots . | . . . Overflow Damage 41 | . . 41 Projectiles . | . . . Explosions 41 | . . 41 Melee . | . . . Knockbacks . | . . . Impact . | . . . Kinetic . | . . . Secondary . | . . . Self-Inflicted Damage 54 | . . 54 Shots 3 | . . 3 Rammed 1 | . . 1 Targets Rammed 1 | . . 1 Kicked . | . . . Crushed . | . . . Highest Temperature 185 | . 5 185 Average Temperature 87 | . 3 91 Received Heat Transfer 300 | . 15 285 Siege Activations . | . . . Robots Corrupted . | . . . Combat Hostiles . | . . . Parts Fried . | . . . Impact Corruptions . | . . . Robots Melted . | . . . Combat Hostiles . | . . . Parts Melted . | . . . Heat Transferred 150 | . . 150 Parts Sabotaged . | . . . Parts Stolen . | . . . Parts Stripped . | . . . Power Chain Reactions . | . . . Missiles Intercepted . | . . . Alert | -11 -10 -9 ------- Run | Scr Mat Mat Peak Influence 657 | . 122 657 Average Influence 180 | . 77 301 Maximum Alert Level 2 | . . 2 Low Security (%) 72 | 100 100 42 Level 1 7 | . . 15 Level 2 20 | . . 42 Level 3 . | . . . Level 4 . | . . . Level 5 . | . . . High Security . | . . . Max Security . | . . . Squads Dispatched 4 | . . 4 Investigation 1 | . . 1 Extermination . | . . . Reinforcement 2 | . . 2 Assault 1 | . . 1 Garrison . | . . . Intercept . | . . . Construction Impeded . | . . . Haulers Reinforced . | . . . Stealth | -11 -10 -9 --------- Run | Scr Mat Mat Distress Signals 3 | . 1 2 Communications Jammed . | . . . Distress Signals . | . . . Times Spotted 37 | . 6 31 Peak Tracking Total 9 | . 4 9 Tactical Retreats . | . . . Traps | -11 -10 -9 ------- Run | Scr Mat Mat Traps Triggered 1 | . . 1 Indirectly . | . . . Trap Hack Attempts . | . . . Triggered . | . . . Disarmed . | . . . Reprogrammed . | . . . Reused . | . . . Traps Extracted . | . . . Installed . | . . . Triggered . | . . . Machines | -11 -10 -9 ---------- Run | Scr Mat Mat Machines Disabled 9 | . . 9 Max in Single Turn 2 | . . 2 Machines Sabotaged . | . . . Garrisons Compromised . | . . . Overloaded Fab Kills . | . . . Fab Network Shutdowns . | . . . Hacking | -11 -10 -9 --------- Run | Scr Mat Mat Machines Accessed 4 | . 2 2 Terminals 2 | . 1 1 Fabricators . | . . . Repair Stations . | . . . Recycling Units 1 | . 1 . Scanalyzers 1 | . . 1 Garrison Access . | . . . Total Hacks 7 | . 2 5 Successful 5 | . 1 4 Failed 2 | . 1 1 Catastrophic . | . . . Database Lockouts . | . . . Manual . | . . . Terminals 2 | . 1 1 Fabricators . | . . . Repair Stations . | . . . Recycling Units 1 | . 1 . Scanalyzers 4 | . . 4 Garrison Access . | . . . Terminal Hacks . | . . . Fabricator Hacks . | . . . Repair Station Hacks . | . . . Recycling Unit Hacks 1 | . 1 . Report Inventory 1 | . 1 . Scanalyzer 4 | . . 4 Insert Component 2 | . . 2 Analyze 2 | . . 2 Garrison Access Hacks . | . . . Unauthorized Hacks . | . . . Terminals . | . . . Fabricators . | . . . Repair Stations . | . . . Recycling Units . | . . . Scanalyzers . | . . . Garrison Access . | . . . Data Cores Recovered . | . . . Used . | . . . Hacking Detections 1 | . . 1 Full Trace Events 1 | . . 1 Feedback Events . | . . . Feedback Blocked . | . . . Robot Schematics Acquired . | . . . Robots Built . | . . . Matter . | . . . Time . | . . . Total Robot Build Rating . | . . . Part Schematics Acquired 2 | . . 2 Parts Built . | . . . Matter . | . . . Time . | . . . Total Part Build Rating . | . . . Parts Repaired . | . . . Time . | . . . Parts Recycled . | . . . Recycled Matter . | . . . Retrieved Matter . | . . . Retrieved Components . | . . . Parts Scanalyzed 2 | . . 2 Part Schematics Acquired 2 | . . 2 Parts Damaged . | . . . Bothacking | -11 -10 -9 ------------ Run | Scr Mat Mat Used RIF Installer . | . . . Robots Hacked 1 | . . 1 Non-combat 1 | . . 1 Combat . | . . . Robot Hacks Applied 2 | . . 2 parse_system 1 | . . 1 no_distress 1 | . . 1 Relay Couplers Released . | . . . Robots Rewired . | . . . Allies Hacked . | . . . Hacks Repelled . | . . . Allies | -11 -10 -9 -------- Run | Scr Mat Mat Total Allies . | . . . Largest Group . | . . . Highest-Rated Group . | . . . Highest-Rated Ally . | . . . Total Orders . | . . . Ally Attacks . | . . . Total Damage . | . . . Kills . | . . . Allies Corrupted . | . . . Allies Melted . | . . . Intel | -11 -10 -9 ------- Run | Scr Mat Mat Robot Analysis Total . | . . . Derelict Logs Recovered . | . . . Drone Launches . | . . . Drone Recoveries . | . . . Exploration | -11 -10 -9 ------------- Run | Scr Mat Mat Turns Passed 838 | 53 379 406 Spaces Moved 438 | 37 195 206 Core 23 | 16 . 7 Treads . | . . . Legs 415 | 21 195 199 Wheels . | . . . Hover . | . . . Flight . | . . . Fastest Speed 50 | 50 120 120 Average Speed 120 | 100 120 125 Slowest Speed 400 | 150 120 400 Overloaded Moves . | . . . Propulsion Burnouts . | . . . Robots Hopped . | . . . Cave-ins Triggered . | . . . Exploration Rate (%) 25 | 3 37 37 Regions Visited 2 Branch Regions . Pre-discovered Areas . | . . . Known Exits Taken . | . . . Unknown Exits Taken 2 | 1 1 . Scrap Searched . | . . . Spaces Dug . | . . . Terrain Destroyed 291 | . 56 235 Melee . | . . . Projectile . | . . . AOE 291 | . 56 235 Actions | -11 -10 -9 --------- Run | Scr Mat Mat Total 678 | 52 334 292 Wait 125 | 4 121 . Move 436 | 36 194 206 Hop . | . . . Pick Up 21 | 6 7 8 Fast Attach 2 | 2 . . Attach 12 | 4 1 7 Detach . | . . . Swap 8 | . 2 6 Drop 7 | . 3 4 Fire 57 | . 6 51 Melee 9 | . . 9 Ram 1 | . . 1 Kick . | . . . Crush . | . . . Escape Stasis . | . . . Rewire . | . . . Trap . | . . . Miscellaneous . | . . . Route ------- -11/Scrapyard -10/Materials -9/Materials (discovered 2 exits: [*Min x2]) History --------- Turn | Location | Event 12 | -11/Scrapyard | Discovered new exit (range 14) 54 | -11/Scrapyard | Entered Materials 201 | -10/Materials | Discovered new exit (range 16) 304 | -10/Materials | Build established: Mutant 433 | -10/Materials | Entered another Materials area 433 | -9/Materials | Evolved 2 slots: Propulsion x1, Utility x1 524 | -9/Materials | Discovered new exit (range 15) 725 | -9/Materials | Discovered new exit (range 12) 813 | -9/Materials | Core integrity fell below 50% 832 | -9/Materials | Core integrity fell below 20% 833 | -9/Materials | First assault squad dispatched 839 | -9/Materials | Destroyed by Y-45 Defender with Beam Rifle Last Messages --------------- 00830_ U-05 Engineer builds a Wall. 00831_ The unstable cave ceiling collapses. 00831_ K-01 Serf collects debris. 00831_ U-05 Engineer lays Concrete. 00832_ K-01 Serf collects debris. 00832_ U-05 Engineer lays Concrete. 00833_ ALERT: Significant disruption in Zone 1V, assault force dispatched. 00833_ K-01 Serf collects debris. 00834_ U-05 Engineer lays Concrete. 00834_ K-01 Serf cleans the Terminal. 00835_ The unstable cave ceiling collapses. 00835_ U-05 Engineer lays Concrete. 00836_ The unstable cave ceiling collapses. 00836_ K-01 Serf collects debris. 00836_ U-05 Engineer lays Concrete. 00836_ U-05 Engineer builds a Wall. 00836_ K-01 Serf collects debris. 00838_ The unstable cave ceiling collapses. 00839_ K-01 Serf cleans the Terminal. Map ----- +----------------------------------------------------+ | ??????########???????????????????????????????????? | | ###+## ????????????????????????????????????? | | ??? #??????????????????????????????? | | < ?? +??????????????????????????????? | | ?? #??????????????????????????????? | | ##/###" ? #??????????????????????????????? | | T #??| # # ????????????????????????????? | | #?" !* + ?????????????????????????????? | | !#? # ####?????+##+??????????????????? | | ### # #??# ??????????????????? | | ## # # % ??/ ??????????????????? | | # # ??# ??????????????????? | | # = # ?# #??????????????????? | | ## = # ?# #??????????????????? | | ## = # % T# #??????????????????? | | ! [## # "# +??????????????????? | | #/# "" #a # "# #??????????????????? | | #== "" w/ k "# #??????????????????? | | " #a sk # ???????????????????? | | # ### # k#s#;#####???????????????? | | ! ! # #???????????????? | | # #### = #???????????????? | | # # # # # #???????????????? | | ## # ###### # [! ###?????????????? | | ?# ####???# ## *%! + ??????????????? | | ?###??????######+## #@*%[ " #???????????????? | | ????????????# #!= g = "" #???????????????? | | ????????????# #=%= Y "" #???????????????? | | ????????????# *= " !#???????????????? | | ????????????# # ######???????????????? | | ????????????# * # #????????????????????? | | ????????????# [ # ????????????????????? | | ????????????# *# ????????????????????? | | ????????????# ###???????????????????? | | ????????????# < ##?????????????????????? | | ????????????########## ??????????????????????? | | ?????????????????????## # #?????????????????????? | | ????????????????????? # ?????????????????????? | | ????????????????????# #????????????????????? | | ????????????????????# #????????????????????? | | ???????????????????? #????????????????????? | | ???????????????????? # ####????????????????????? | | ???????????????????? # #???????????????????????? | | ???????????????????? ? #???????????????????????? | | ????????????????????#+#? ???????????????????????? | | ???????????????????????? ???????????????????????? | | ????????????????????????? ???????????????????????? | | ????????????????????????? ???????????????????????? | | ?????????????????????????????????????????????????? | | ?????????????????????????????????????????????????? | +----------------------------------------------------+ Best States ------------- Heat Dissipation 28 Coolant Potential 50 Energy Generation 10 Energy Capacity 250 Matter Stores 300 Matter Capacity 300 Sight Range 16 Terrain Scan Density 10 Armor Coverage 225 Evasion (%) 40 Item Schematics ----------------- Datajack | -9/Materials | Scanalyzed Med. Armor Plating | -9/Materials | Scanalyzed Robot Schematics ------------------ None Fabricated ------------ Nothing Alien Tech Used ----------------- None Achievements -------------- None Challenges ------------ None Game ------ Seed PhasingMachineAccelerator Manual? 0 Play Time 00:18:22 Cumulative 9.3 hours Start 2020.04.06 @ 15:32:27 End 2020.04.06 @ 15:50:41 Sessions 1 Manual Loads 0 Difficulty Rogue Special Mode None Game No. 8 Rogue 8 Adventurer 0 Explorer 0 Win Type - Total 0 Types 0/0/0/0/0/0/0 Lore% 2 Gallery% 13 Achievement% 10 Wizard Run 0 Options --------- ASCII 0 Keyboard 0 Movement Numpad Keybinds 0 Fullscreen 1 Font 20/SmallcapsGlow Map View 66x50 Tactical HUD 1 Map Filters NONE Filters NONE Steam 1 RUN: cf777275-5ae6-41e4-9187-f71e994fd738